[Event "Titled Tuesday Blitz June 14 Early 2022"]
[White "Rodrigue-Lemieux, Shawn"]
[Black "Puranik, Abhimanyu"]
[WhiteFideId "2620049"]
[BlackFideId "5061245"]
[WhiteElo "1763"]
[BlackElo "2520"]
[Result "0-1"]
[Round "04"]
[TimeControl "180+1"]
[Date "2022.06.14"]
[WhiteClock "0:00:02"]
[BlackClock "0:00:17"]

1. a3 {[%clk 0:03:00]}  e5 {[%clk 0:02:45]} 2. c3 {[%clk 0:03:00]}  d5 {[%clk 0:02:45]} 3. d4 {[%clk 0:03:01]}  e4 {[%clk 0:02:45]} 4. c4 {[%clk 0:03:02]}  Nf6 {[%clk 0:02:44]} 5. Nc3 {[%clk 0:03:02]}  c6 {[%clk 0:02:44]} 6. cxd5 {[%clk 0:03:01]}  cxd5 {[%clk 0:02:44]} 7. Bg5 {[%clk 0:03:02]}  Be7 {[%clk 0:02:41]} 8. e3 {[%clk 0:03:01]}  h6 {[%clk 0:02:41]} 9. Bxf6 {[%clk 0:03:01]}  Bxf6 {[%clk 0:02:42]} 10. Qb3 {[%clk 0:02:59]}  Be6 {[%clk 0:02:39]} 11. Qxb7 {[%clk 0:02:49]}  Nd7 {[%clk 0:02:39]} 12. Bb5 {[%clk 0:02:45]}  O-O {[%clk 0:02:37]} 13. Bxd7 {[%clk 0:02:33]}  Rb8 {[%clk 0:02:32]} 14. Qxa7 {[%clk 0:02:31]}  Bxd7 {[%clk 0:02:29]} 15. Nxd5 {[%clk 0:02:07]}  Rxb2 {[%clk 0:02:28]} 16. Qc5 {[%clk 0:01:27]}  Qb8 {[%clk 0:02:07]} 17. Nxf6+ {[%clk 0:01:18]}  gxf6 {[%clk 0:02:07]} 18. Qc1 {[%clk 0:00:27]}  Rc8 {[%clk 0:02:04]} 19. Qd1 {[%clk 0:00:27]}  Rcc2 {[%clk 0:01:37]} 20. Nh3 {[%clk 0:00:26]}  Qb5 {[%clk 0:01:13]} 21. Nf4 {[%clk 0:00:17]}  Qa5+ {[%clk 0:01:08]} 22. Kf1 {[%clk 0:00:15]}  Rxf2+ {[%clk 0:01:09]} 23. Kg1 {[%clk 0:00:15]}  Qg5 {[%clk 0:00:48]} 24. g3 {[%clk 0:00:16]}  Bg4 {[%clk 0:00:27]} 25. Qe1 {[%clk 0:00:11]}  Rxf4 {[%clk 0:00:26]} 26. exf4 {[%clk 0:00:06]}  Qd5 {[%clk 0:00:18]} 27. Qc3 {[%clk 0:00:04]}  Qb5 {[%clk 0:00:18]} 28. Re1 {[%clk 0:00:03]}  Bf3 {[%clk 0:00:17]} 29. Qc8+ {[%clk 0:00:02]}  Kg7 {[%clk 0:00:17]} 0-1


[Site "https://www.chess.com"]

[Event "Titled Tuesday Blitz June 14 Early 2022"]
[White "Samant Aditya S"]
[Black "Sjugirov, Sanan"]
[WhiteFideId "35080580"]
[BlackFideId "4189302"]
[WhiteElo "1968"]
[BlackElo "2602"]
[Result "0-1"]
[Round "04"]
[TimeControl "180+1"]
[Date "2022.06.14"]
[WhiteClock "0:00:25"]
[BlackClock "0:01:32"]

1. e4 {[%clk 0:03:00]}  c6 {[%clk 0:03:00]} 2. d4 {[%clk 0:03:00]}  d5 {[%clk 0:03:00]} 3. Nc3 {[%clk 0:03:01]}  dxe4 {[%clk 0:03:01]} 4. Nxe4 {[%clk 0:03:02]}  Nf6 {[%clk 0:03:01]} 5. Nxf6+ {[%clk 0:03:02]}  exf6 {[%clk 0:03:02]} 6. c3 {[%clk 0:03:02]}  Bd6 {[%clk 0:03:02]} 7. Bd3 {[%clk 0:03:03]}  O-O {[%clk 0:03:03]} 8. Qc2 {[%clk 0:03:04]}  Re8+ {[%clk 0:03:03]} 9. Ne2 {[%clk 0:03:04]}  h6 {[%clk 0:03:04]} 10. O-O {[%clk 0:03:04]}  Nd7 {[%clk 0:03:00]} 11. h3 {[%clk 0:03:01]}  Nf8 {[%clk 0:02:58]} 12. Be3 {[%clk 0:02:50]}  Ne6 {[%clk 0:02:51]} 13. c4 {[%clk 0:02:45]}  Bc7 {[%clk 0:02:50]} 14. Rad1 {[%clk 0:02:26]}  Qd6 {[%clk 0:02:32]} 15. f4 {[%clk 0:02:03]}  g6 {[%clk 0:02:15]} 16. Kh1 {[%clk 0:01:39]}  Ng7 {[%clk 0:02:13]} 17. Bf2 {[%clk 0:01:09]}  Bf5 {[%clk 0:02:09]} 18. Bxf5 {[%clk 0:01:02]}  Nxf5 {[%clk 0:02:10]} 19. Qd3 {[%clk 0:00:54]}  Rxe2 {[%clk 0:01:45]} 20. Qxe2 {[%clk 0:00:55]}  Qxf4 {[%clk 0:01:45]} 21. g3 {[%clk 0:00:41]}  Qxg3 {[%clk 0:01:44]} 22. Bxg3 {[%clk 0:00:22]}  Nxg3+ {[%clk 0:01:45]} 23. Kg2 {[%clk 0:00:23]}  Nxe2 {[%clk 0:01:45]} 24. Kf3 {[%clk 0:00:24]}  Nf4 {[%clk 0:01:34]} 25. d5 {[%clk 0:00:24]}  cxd5 {[%clk 0:01:33]} 26. cxd5 {[%clk 0:00:25]}  Bd6 {[%clk 0:01:34]} 27. Rfe1 {[%clk 0:00:25]}  Nxh3 {[%clk 0:01:32]} 0-1


[Site "https://www.chess.com"]

[Event "Titled Tuesday Blitz June 14 Early 2022"]
[White "Shirov, Alexei"]
[Black "Skliarov, Viktor"]
[WhiteFideId "2209390"]
[BlackFideId "14106736"]
[WhiteElo "2678"]
[BlackElo "2229"]
[Result "1/2-1/2"]
[Round "04"]
[TimeControl "180+1"]
[Date "2022.06.14"]
[WhiteClock "0:00:19"]
[BlackClock "0:00:14"]

1. e4 {[%clk 0:03:00]}  c5 {[%clk 0:03:00]} 2. Nf3 {[%clk 0:02:59]}  Nc6 {[%clk 0:02:57]} 3. d4 {[%clk 0:02:56]}  cxd4 {[%clk 0:02:58]} 4. Nxd4 {[%clk 0:02:56]}  Nf6 {[%clk 0:02:58]} 5. Nc3 {[%clk 0:02:56]}  e5 {[%clk 0:02:59]} 6. Ndb5 {[%clk 0:02:55]}  d6 {[%clk 0:02:59]} 7. Nd5 {[%clk 0:02:54]}  Nxd5 {[%clk 0:02:59]} 8. exd5 {[%clk 0:02:53]}  Nb8 {[%clk 0:02:59]} 9. c4 {[%clk 0:02:49]}  Be7 {[%clk 0:03:00]} 10. Be2 {[%clk 0:02:42]}  a6 {[%clk 0:03:00]} 11. Nc3 {[%clk 0:02:41]}  O-O {[%clk 0:03:00]} 12. O-O {[%clk 0:02:40]}  f5 {[%clk 0:03:00]} 13. b4 {[%clk 0:02:34]}  a5 {[%clk 0:02:54]} 14. bxa5 {[%clk 0:02:29]}  Rxa5 {[%clk 0:02:49]} 15. Nb5 {[%clk 0:02:27]}  Nd7 {[%clk 0:02:45]} 16. Ba3 {[%clk 0:02:18]}  e4 {[%clk 0:02:02]} 17. Bxd6 {[%clk 0:02:13]}  Bxd6 {[%clk 0:01:46]} 18. Nxd6 {[%clk 0:02:12]}  Ne5 {[%clk 0:01:46]} 19. Nxc8 {[%clk 0:02:08]}  Qxc8 {[%clk 0:01:46]} 20. Qd4 {[%clk 0:02:08]}  Nd7 {[%clk 0:01:22]} 21. f3 {[%clk 0:01:54]}  Qc5 {[%clk 0:01:13]} 22. Rfd1 {[%clk 0:01:32]}  exf3 {[%clk 0:01:00]} 23. Bxf3 {[%clk 0:01:31]}  Rc8 {[%clk 0:01:00]} 24. Be2 {[%clk 0:01:25]}  Qxd4+ {[%clk 0:00:41]} 25. Rxd4 {[%clk 0:01:24]}  Nc5 {[%clk 0:00:41]} 26. d6 {[%clk 0:01:22]}  Nb3 {[%clk 0:00:39]} 27. axb3 {[%clk 0:01:14]}  Rxa1+ {[%clk 0:00:38]} 28. Kf2 {[%clk 0:01:13]}  b6 {[%clk 0:00:30]} 29. b4 {[%clk 0:01:04]}  Rc1 {[%clk 0:00:25]} 30. Bf3 {[%clk 0:01:00]}  Kf7 {[%clk 0:00:22]} 31. Bd5+ {[%clk 0:00:55]}  Kf6 {[%clk 0:00:22]} 32. Rd2 {[%clk 0:00:52]}  Rd8 {[%clk 0:00:21]} 33. Bc6 {[%clk 0:00:32]}  Rxc4 {[%clk 0:00:20]} 34. b5 {[%clk 0:00:32]}  Ke5 {[%clk 0:00:17]} 35. d7 {[%clk 0:00:30]}  Rd4 {[%clk 0:00:17]} 36. Re2+ {[%clk 0:00:30]}  Kd6 {[%clk 0:00:17]} 37. Re8 {[%clk 0:00:28]}  Kc7 {[%clk 0:00:17]} 38. Re7 {[%clk 0:00:28]}  R8xd7 {[%clk 0:00:16]} 39. Bxd7 {[%clk 0:00:26]}  Rxd7 {[%clk 0:00:17]} 40. Re5 {[%clk 0:00:26]}  g6 {[%clk 0:00:17]} 41. Kf3 {[%clk 0:00:26]}  Kd6 {[%clk 0:00:17]} 42. Re1 {[%clk 0:00:24]}  Rc7 {[%clk 0:00:17]} 43. Rd1+ {[%clk 0:00:20]}  Ke6 {[%clk 0:00:16]} 44. Re1+ {[%clk 0:00:20]}  Kd6 {[%clk 0:00:13]} 45. Rd1+ {[%clk 0:00:20]}  Ke6 {[%clk 0:00:13]} 46. Re1+ {[%clk 0:00:19]}  Kd6 {[%clk 0:00:14]} 1/2-1/2


[Site "https://www.chess.com"]

[Event "Titled Tuesday Blitz June 14 Early 2022"]
[White "Terry, Renato"]
[Black "Beerdsen, Thomas"]
[WhiteFideId "3803457"]
[BlackFideId "1030108"]
[WhiteElo "2577"]
[BlackElo "2585"]
[Result "0-1"]
[Round "04"]
[TimeControl "180+1"]
[Date "2022.06.14"]
[WhiteClock "0:00:02"]
[BlackClock "0:00:05"]

1. d4 {[%clk 0:03:00]}  h6 {[%clk 0:03:00]} 2. e4 {[%clk 0:02:59]}  g5 {[%clk 0:03:00]} 3. h4 {[%clk 0:02:57]}  g4 {[%clk 0:03:00]} 4. Qxg4 {[%clk 0:02:54]}  d5 {[%clk 0:03:01]} 5. Qe2 {[%clk 0:02:49]}  dxe4 {[%clk 0:03:01]} 6. Qxe4 {[%clk 0:02:50]}  Nf6 {[%clk 0:03:01]} 7. Qd3 {[%clk 0:02:49]}  Nc6 {[%clk 0:02:59]} 8. Nf3 {[%clk 0:02:46]}  Bg4 {[%clk 0:02:59]} 9. c3 {[%clk 0:02:46]}  Qd5 {[%clk 0:02:51]} 10. Bf4 {[%clk 0:02:46]}  O-O-O {[%clk 0:02:50]} 11. Nbd2 {[%clk 0:02:44]}  Rg8 {[%clk 0:02:41]} 12. Qc4 {[%clk 0:01:43]}  Qf5 {[%clk 0:02:22]} 13. Bg3 {[%clk 0:01:27]}  Nd5 {[%clk 0:01:57]} 14. O-O-O {[%clk 0:01:18]}  e6 {[%clk 0:01:39]} 15. Bd3 {[%clk 0:01:17]}  Qh5 {[%clk 0:01:40]} 16. Be2 {[%clk 0:01:09]}  Kb8 {[%clk 0:01:25]} 17. Rde1 {[%clk 0:01:08]}  Nb6 {[%clk 0:01:20]} 18. Qb3 {[%clk 0:00:55]}  Na5 {[%clk 0:01:11]} 19. Qb5 {[%clk 0:00:50]}  Rd5 {[%clk 0:01:01]} 20. Qe8+ {[%clk 0:00:50]}  Nc8 {[%clk 0:01:01]} 21. Ne5 {[%clk 0:00:31]}  Bxe2 {[%clk 0:00:57]} 22. Nd7+ {[%clk 0:00:12]}  Rxd7 {[%clk 0:00:58]} 23. Qxd7 {[%clk 0:00:13]}  Bd6 {[%clk 0:00:58]} 24. Bxd6 {[%clk 0:00:08]}  Nxd6 {[%clk 0:00:59]} 25. f3 {[%clk 0:00:08]}  Bb5 {[%clk 0:01:00]} 26. Qe7 {[%clk 0:00:09]}  Qd5 {[%clk 0:00:48]} 27. b3 {[%clk 0:00:09]}  Nc6 {[%clk 0:00:43]} 28. Qf6 {[%clk 0:00:08]}  Ba6 {[%clk 0:00:28]} 29. Qxh6 {[%clk 0:00:08]}  Qa5 {[%clk 0:00:25]} 30. Kb2 {[%clk 0:00:09]}  Nb5 {[%clk 0:00:26]} 31. Qe3 {[%clk 0:00:05]}  Qa3+ {[%clk 0:00:20]} 32. Ka1 {[%clk 0:00:04]}  Na5 {[%clk 0:00:18]} 33. g4 {[%clk 0:00:03]}  b6 {[%clk 0:00:18]} 34. Rc1 {[%clk 0:00:03]}  Bb7 {[%clk 0:00:18]} 35. Kb1 {[%clk 0:00:03]}  f5 {[%clk 0:00:18]} 36. Rhg1 {[%clk 0:00:03]}  Rf8 {[%clk 0:00:13]} 37. g5 {[%clk 0:00:03]}  Nd6 {[%clk 0:00:13]} 38. Qd3 {[%clk 0:00:03]}  Nc6 {[%clk 0:00:11]} 39. Qc2 {[%clk 0:00:04]}  Ba6 {[%clk 0:00:09]} 40. g6 {[%clk 0:00:04]}  Ne7 {[%clk 0:00:07]} 41. g7 {[%clk 0:00:04]}  Rg8 {[%clk 0:00:07]} 42. h5 {[%clk 0:00:04]}  Ne8 {[%clk 0:00:08]} 43. h6 {[%clk 0:00:05]}  Nf6 {[%clk 0:00:08]} 44. Ka1 {[%clk 0:00:04]}  Qd6 {[%clk 0:00:08]} 45. Rce1 {[%clk 0:00:04]}  Bb7 {[%clk 0:00:07]} 46. Nc4 {[%clk 0:00:04]}  Qf4 {[%clk 0:00:07]} 47. Qd2 {[%clk 0:00:04]}  Qh4 {[%clk 0:00:06]} 48. Rxe6 {[%clk 0:00:03]}  Ned5 {[%clk 0:00:03]} 49. Ne5 {[%clk 0:00:04]}  Bc8 {[%clk 0:00:03]} 50. Rc6 {[%clk 0:00:03]}  Kb7 {[%clk 0:00:04]} 51. Rc4 {[%clk 0:00:03]}  f4 {[%clk 0:00:03]} 52. Re1 {[%clk 0:00:02]}  Qxh6 {[%clk 0:00:04]} 53. Ra4 {[%clk 0:00:02]}  Ne3 {[%clk 0:00:04]} 54. c4 {[%clk 0:00:02]}  Rxg7 {[%clk 0:00:04]} 55. c5 {[%clk 0:00:02]}  Nfd5 {[%clk 0:00:04]} 56. c6+ {[%clk 0:00:02]}  Kb8 {[%clk 0:00:05]} 57. Ra3 {[%clk 0:00:02]}  Qh7 {[%clk 0:00:05]} 58. Kb2 {[%clk 0:00:02]}  Rg2 {[%clk 0:00:06]} 59. Re2 {[%clk 0:00:02]}  Rg1 {[%clk 0:00:06]} 60. Re1 {[%clk 0:00:02]}  Rxe1 {[%clk 0:00:06]} 61. Qxe1 {[%clk 0:00:03]}  Qc2+ {[%clk 0:00:06]} 62. Ka1 {[%clk 0:00:03]}  Qg2 {[%clk 0:00:05]} 63. Kb1 {[%clk 0:00:03]}  Bf5+ {[%clk 0:00:04]} 64. Ka1 {[%clk 0:00:02]}  Nc2+ {[%clk 0:00:04]} 65. Kb2 {[%clk 0:00:02]}  Nxe1+ {[%clk 0:00:05]} 0-1


[Site "https://www.chess.com"]

[Event "Titled Tuesday Blitz June 14 Early 2022"]
[White "Yang, Kaiqi"]
[Black "Livaic, Leon"]
[WhiteFideId "8604398"]
[BlackFideId "14531534"]
[WhiteElo "2373"]
[BlackElo "2540"]
[Result "1-0"]
[Round "04"]
[TimeControl "180+1"]
[Date "2022.06.14"]
[WhiteClock "0:01:30"]
[BlackClock "0:00:39"]

1. d4 {[%clk 0:03:00]}  Nf6 {[%clk 0:03:00]} 2. c4 {[%clk 0:02:59]}  g6 {[%clk 0:03:00]} 3. Nc3 {[%clk 0:02:59]}  c5 {[%clk 0:03:00]} 4. d5 {[%clk 0:02:59]}  e6 {[%clk 0:03:01]} 5. e4 {[%clk 0:02:58]}  exd5 {[%clk 0:03:01]} 6. cxd5 {[%clk 0:02:58]}  d6 {[%clk 0:03:01]} 7. f4 {[%clk 0:02:58]}  Bg7 {[%clk 0:03:01]} 8. Bb5+ {[%clk 0:02:59]}  Nfd7 {[%clk 0:03:01]} 9. a4 {[%clk 0:02:58]}  O-O {[%clk 0:03:01]} 10. Nf3 {[%clk 0:02:57]}  Na6 {[%clk 0:03:01]} 11. O-O {[%clk 0:02:57]}  Nb4 {[%clk 0:03:02]} 12. Kh1 {[%clk 0:02:58]}  a6 {[%clk 0:03:02]} 13. Bxd7 {[%clk 0:02:58]}  Bxd7 {[%clk 0:03:01]} 14. f5 {[%clk 0:02:59]}  gxf5 {[%clk 0:03:01]} 15. Bg5 {[%clk 0:02:58]}  f6 {[%clk 0:03:01]} 16. Bf4 {[%clk 0:02:58]}  Re8 {[%clk 0:02:44]} 17. Nd2 {[%clk 0:02:59]}  Bf8 {[%clk 0:02:17]} 18. Qh5 {[%clk 0:02:55]}  Qe7 {[%clk 0:02:05]} 19. Rf3 {[%clk 0:02:44]}  Qf7 {[%clk 0:01:40]} 20. Rg3+ {[%clk 0:02:39]}  Bg7 {[%clk 0:01:40]} 21. Qh4 {[%clk 0:02:32]}  Kh8 {[%clk 0:01:36]} 22. Bxd6 {[%clk 0:02:25]}  fxe4 {[%clk 0:01:27]} 23. Ndxe4 {[%clk 0:02:24]}  Bf5 {[%clk 0:01:21]} 24. Rf1 {[%clk 0:02:16]}  Bg6 {[%clk 0:01:07]} 25. Bxc5 {[%clk 0:02:04]}  Nxd5 {[%clk 0:00:56]} 26. Nd6 {[%clk 0:01:59]}  Qe6 {[%clk 0:00:43]} 27. Nxe8 {[%clk 0:01:55]}  Bxe8 {[%clk 0:00:43]} 28. Nxd5 {[%clk 0:01:37]}  Qxd5 {[%clk 0:00:44]} 29. Rxg7 {[%clk 0:01:33]}  Qd3 {[%clk 0:00:39]} 30. Qxf6 {[%clk 0:01:30]} 1-0


[Site "https://www.chess.com"]

[Event "Titled Tuesday Blitz June 14 Early 2022"]
[White "Yilmaz, Mustafa"]
[Black "Papp, Levente"]
[WhiteFideId "6302718"]
[BlackFideId "751243"]
[WhiteElo "2568"]
[BlackElo "2308"]
[Result "1-0"]
[Round "04"]
[TimeControl "180+1"]
[Date "2022.06.14"]
[WhiteClock "0:00:03"]
[BlackClock "0:00:06"]

1. c4 {[%clk 0:03:00]}  e6 {[%clk 0:02:57]} 2. Nc3 {[%clk 0:03:00]}  Nf6 {[%clk 0:02:57]} 3. e4 {[%clk 0:03:00]}  c5 {[%clk 0:02:57]} 4. e5 {[%clk 0:02:59]}  Ng8 {[%clk 0:02:57]} 5. Nf3 {[%clk 0:02:57]}  Nc6 {[%clk 0:02:57]} 6. d4 {[%clk 0:02:57]}  cxd4 {[%clk 0:02:58]} 7. Nxd4 {[%clk 0:02:58]}  Nxe5 {[%clk 0:02:59]} 8. Ndb5 {[%clk 0:02:58]}  f6 {[%clk 0:02:58]} 9. Be3 {[%clk 0:02:56]}  a6 {[%clk 0:02:58]} 10. Nd6+ {[%clk 0:02:57]}  Bxd6 {[%clk 0:02:58]} 11. Qxd6 {[%clk 0:02:58]}  Ne7 {[%clk 0:02:57]} 12. Bb6 {[%clk 0:02:57]}  Nf5 {[%clk 0:02:58]} 13. Qb4 {[%clk 0:02:56]}  Nc6 {[%clk 0:02:58]} 14. Qc5 {[%clk 0:02:31]}  Qe7 {[%clk 0:02:57]} 15. O-O-O {[%clk 0:02:30]}  Qxc5 {[%clk 0:02:48]} 16. Bxc5 {[%clk 0:02:31]}  d6 {[%clk 0:02:49]} 17. Bb6 {[%clk 0:02:27]}  Ke7 {[%clk 0:02:38]} 18. f4 {[%clk 0:02:21]}  Nb8 {[%clk 0:02:22]} 19. g4 {[%clk 0:02:20]}  Nh6 {[%clk 0:02:22]} 20. Bc7 {[%clk 0:02:15]}  Nxg4 {[%clk 0:02:14]} 21. Rg1 {[%clk 0:02:14]}  Ne3 {[%clk 0:02:04]} 22. Rd3 {[%clk 0:01:09]}  Nxf1 {[%clk 0:01:52]} 23. Rxg7+ {[%clk 0:01:09]}  Kf8 {[%clk 0:01:50]} 24. Rg1 {[%clk 0:01:10]}  Nxh2 {[%clk 0:01:47]} 25. Bxd6+ {[%clk 0:01:06]}  Kf7 {[%clk 0:01:46]} 26. Rdg3 {[%clk 0:00:56]}  e5 {[%clk 0:01:29]} 27. Rg7+ {[%clk 0:00:53]}  Ke6 {[%clk 0:01:29]} 28. fxe5 {[%clk 0:00:52]}  fxe5 {[%clk 0:01:16]} 29. Ne4 {[%clk 0:00:46]}  Nc6 {[%clk 0:01:05]} 30. Rh1 {[%clk 0:00:28]}  Kf5 {[%clk 0:00:33]} 31. Ng3+ {[%clk 0:00:26]}  Ke6 {[%clk 0:00:33]} 32. Bc7 {[%clk 0:00:23]}  h5 {[%clk 0:00:24]} 33. Rxh2 {[%clk 0:00:23]}  h4 {[%clk 0:00:24]} 34. Ne4 {[%clk 0:00:20]}  Nd4 {[%clk 0:00:24]} 35. Nc5+ {[%clk 0:00:19]}  Kf6 {[%clk 0:00:23]} 36. Rg1 {[%clk 0:00:17]}  Bf5 {[%clk 0:00:22]} 37. Rf2 {[%clk 0:00:15]}  Rac8 {[%clk 0:00:22]} 38. Ne4+ {[%clk 0:00:14]}  Ke6 {[%clk 0:00:21]} 39. Ng5+ {[%clk 0:00:13]}  Kf6 {[%clk 0:00:22]} 40. Ne4+ {[%clk 0:00:10]}  Ke6 {[%clk 0:00:22]} 41. Nc5+ {[%clk 0:00:11]}  Kf6 {[%clk 0:00:21]} 42. Bd6 {[%clk 0:00:07]}  h3 {[%clk 0:00:20]} 43. Re1 {[%clk 0:00:03]}  Rxc5 {[%clk 0:00:19]} 44. Bxc5 {[%clk 0:00:03]}  Ne6 {[%clk 0:00:12]} 45. Bd6 {[%clk 0:00:03]}  e4 {[%clk 0:00:10]} 46. Rxe4 {[%clk 0:00:03]}  h2 {[%clk 0:00:07]} 47. Bxh2 {[%clk 0:00:03]}  Kg6 {[%clk 0:00:06]} 48. Rg2+ {[%clk 0:00:02]}  Kf7 {[%clk 0:00:06]} 49. Re3 {[%clk 0:00:03]}  Nc5 {[%clk 0:00:06]} 50. Rf2 {[%clk 0:00:03]}  Kg6 {[%clk 0:00:05]} 51. Rg3+ {[%clk 0:00:03]}  Kf6 {[%clk 0:00:06]} 52. Rgf3 {[%clk 0:00:04]}  Rh5 {[%clk 0:00:06]} 53. Bd6 {[%clk 0:00:02]}  Ne4 {[%clk 0:00:06]} 54. Rd2 {[%clk 0:00:02]}  Nxd2 {[%clk 0:00:06]} 55. Kxd2 {[%clk 0:00:03]}  Rh2+ {[%clk 0:00:06]} 56. Bxh2 {[%clk 0:00:03]} 1-0


[Site "https://www.chess.com"]

[Event "Titled Tuesday Blitz June 14 Early 2022"]
[White "Zhigalko, Sergei"]
[Black "Tatarinov, Dmitry"]
[WhiteFideId "13502956"]
[BlackFideId "24160067"]
[WhiteElo "2662"]
[BlackElo "2302"]
[Result "1-0"]
[Round "04"]
[TimeControl "180+1"]
[Date "2022.06.14"]
[WhiteClock "0:00:03"]
[BlackClock "0:00:02"]

1. e4 {[%clk 0:03:00]}  c6 {[%clk 0:02:57]} 2. d4 {[%clk 0:03:01]}  d5 {[%clk 0:02:58]} 3. e5 {[%clk 0:03:01]}  Bf5 {[%clk 0:02:56]} 4. Nf3 {[%clk 0:03:02]}  e6 {[%clk 0:02:55]} 5. Be2 {[%clk 0:03:02]}  Nd7 {[%clk 0:02:56]} 6. O-O {[%clk 0:03:03]}  Ne7 {[%clk 0:02:56]} 7. Nbd2 {[%clk 0:03:04]}  Bg6 {[%clk 0:02:55]} 8. Nh4 {[%clk 0:03:03]}  Nf5 {[%clk 0:02:55]} 9. Nxg6 {[%clk 0:03:02]}  hxg6 {[%clk 0:02:55]} 10. Nf3 {[%clk 0:03:03]}  Be7 {[%clk 0:02:55]} 11. g3 {[%clk 0:03:02]}  Qc7 {[%clk 0:02:51]} 12. c3 {[%clk 0:03:00]}  O-O-O {[%clk 0:02:42]} 13. Bf4 {[%clk 0:03:00]}  Kb8 {[%clk 0:02:40]} 14. h4 {[%clk 0:02:59]}  Ka8 {[%clk 0:02:39]} 15. b4 {[%clk 0:02:56]}  Nb6 {[%clk 0:02:27]} 16. a4 {[%clk 0:02:38]}  Nc4 {[%clk 0:02:27]} 17. Qb3 {[%clk 0:02:36]}  Bxh4 {[%clk 0:01:42]} 18. gxh4 {[%clk 0:02:21]}  Nxh4 {[%clk 0:01:42]} 19. Nxh4 {[%clk 0:01:54]}  Rxh4 {[%clk 0:01:42]} 20. Bg3 {[%clk 0:01:55]}  Qe7 {[%clk 0:01:27]} 21. Bxc4 {[%clk 0:01:48]}  dxc4 {[%clk 0:01:17]} 22. Qxc4 {[%clk 0:01:34]}  Rdh8 {[%clk 0:01:17]} 23. Kg2 {[%clk 0:01:23]}  Rh2+ {[%clk 0:01:12]} 24. Kf3 {[%clk 0:01:17]}  R8h3 {[%clk 0:00:59]} 25. Rae1 {[%clk 0:00:20]}  Qg5 {[%clk 0:00:58]} 26. Re4 {[%clk 0:00:16]}  Qh5+ {[%clk 0:00:41]} 27. Ke3 {[%clk 0:00:11]}  Qf5 {[%clk 0:00:30]} 28. Rf4 {[%clk 0:00:05]}  Qc2 {[%clk 0:00:12]} 29. Qd3 {[%clk 0:00:04]}  Qb3 {[%clk 0:00:04]} 30. Rxf7 {[%clk 0:00:04]}  a6 {[%clk 0:00:04]} 31. Rf3 {[%clk 0:00:03]}  Ka7 {[%clk 0:00:02]} 32. b5 {[%clk 0:00:03]}  axb5 {[%clk 0:00:02]} 33. axb5 {[%clk 0:00:04]}  cxb5 {[%clk 0:00:03]} 34. d5 {[%clk 0:00:04]}  exd5 {[%clk 0:00:02]} 35. e6 {[%clk 0:00:03]} 1-0


[Site "https://www.chess.com"]

[Event "Titled Tuesday Blitz June 14 Early 2022"]
[White "Adla, Diego"]
[Black "Samadov, Read"]
[WhiteFideId "100072"]
[BlackFideId "13417444"]
[WhiteElo "2377"]
[BlackElo "2084"]
[Result "1/2-1/2"]
[Round "05"]
[TimeControl "180+1"]
[Date "2022.06.14"]
[WhiteClock "0:00:14"]
[BlackClock "0:00:04"]

1. c4 {[%clk 0:03:00]}  e5 {[%clk 0:02:59]} 2. Nc3 {[%clk 0:03:00]}  Nf6 {[%clk 0:03:00]} 3. Nf3 {[%clk 0:02:59]}  Nc6 {[%clk 0:03:00]} 4. e4 {[%clk 0:03:00]}  Bb4 {[%clk 0:03:00]} 5. d3 {[%clk 0:02:59]}  d6 {[%clk 0:03:00]} 6. Be2 {[%clk 0:02:58]}  O-O {[%clk 0:02:58]} 7. O-O {[%clk 0:02:58]}  h6 {[%clk 0:02:53]} 8. Ne1 {[%clk 0:02:57]}  Nd4 {[%clk 0:02:47]} 9. Nc2 {[%clk 0:02:56]}  Nxc2 {[%clk 0:02:47]} 10. Qxc2 {[%clk 0:02:56]}  c6 {[%clk 0:02:45]} 11. Kh1 {[%clk 0:02:56]}  Bc5 {[%clk 0:02:39]} 12. f4 {[%clk 0:02:55]}  exf4 {[%clk 0:02:20]} 13. Bxf4 {[%clk 0:02:54]}  Be6 {[%clk 0:02:14]} 14. Rad1 {[%clk 0:02:53]}  Bd4 {[%clk 0:02:14]} 15. Bf3 {[%clk 0:02:52]}  Ng4 {[%clk 0:02:10]} 16. h3 {[%clk 0:02:48]}  Qh4 {[%clk 0:01:57]} 17. Bxg4 {[%clk 0:02:12]}  Bxg4 {[%clk 0:01:56]} 18. Rde1 {[%clk 0:02:11]}  Rad8 {[%clk 0:01:47]} 19. Bh2 {[%clk 0:02:09]}  Be6 {[%clk 0:01:44]} 20. Ne2 {[%clk 0:02:07]}  Be5 {[%clk 0:01:42]} 21. Nf4 {[%clk 0:02:02]}  Qe7 {[%clk 0:01:35]} 22. b3 {[%clk 0:01:59]}  Qd7 {[%clk 0:01:27]} 23. Qd2 {[%clk 0:01:58]}  c5 {[%clk 0:01:21]} 24. Rf3 {[%clk 0:01:57]}  Rde8 {[%clk 0:01:17]} 25. Ref1 {[%clk 0:01:57]}  Kh7 {[%clk 0:01:12]} 26. Bg1 {[%clk 0:01:55]}  Bxf4 {[%clk 0:00:46]} 27. Rxf4 {[%clk 0:01:55]}  b6 {[%clk 0:00:40]} 28. d4 {[%clk 0:01:52]}  f6 {[%clk 0:00:39]} 29. Rd1 {[%clk 0:01:46]}  Qe7 {[%clk 0:00:35]} 30. Bh2 {[%clk 0:01:44]}  Bf7 {[%clk 0:00:35]} 31. Rf2 {[%clk 0:01:36]}  Qxe4 {[%clk 0:00:33]} 32. Bxd6 {[%clk 0:01:35]}  Rg8 {[%clk 0:00:33]} 33. dxc5 {[%clk 0:01:30]}  bxc5 {[%clk 0:00:34]} 34. Bxc5 {[%clk 0:01:23]}  Rd8 {[%clk 0:00:34]} 35. Qc1 {[%clk 0:01:22]}  Bg6 {[%clk 0:00:28]} 36. Re1 {[%clk 0:01:17]}  Qc6 {[%clk 0:00:27]} 37. Be3 {[%clk 0:01:07]}  Rd3 {[%clk 0:00:27]} 38. Rd2 {[%clk 0:01:06]}  Rgd8 {[%clk 0:00:26]} 39. Red1 {[%clk 0:01:04]}  Rxe3 {[%clk 0:00:24]} 40. Rxd8 {[%clk 0:01:02]}  Rxh3+ {[%clk 0:00:24]} 41. Kg1 {[%clk 0:01:03]}  Qc5+ {[%clk 0:00:23]} 42. R8d4 {[%clk 0:01:01]}  Rg3 {[%clk 0:00:08]} 43. Qf4 {[%clk 0:01:00]}  Rg5 {[%clk 0:00:06]} 44. Qd6 {[%clk 0:01:00]}  Qf5 {[%clk 0:00:05]} 45. R4d2 {[%clk 0:00:55]}  Qh3 {[%clk 0:00:05]} 46. Qd4 {[%clk 0:00:51]}  Rg4 {[%clk 0:00:05]} 47. Qf2 {[%clk 0:00:11]}  Be4 {[%clk 0:00:05]} 48. Re1 {[%clk 0:00:10]}  Bxg2 {[%clk 0:00:04]} 49. Qxg2 {[%clk 0:00:11]}  Rxg2+ {[%clk 0:00:04]} 50. Rxg2 {[%clk 0:00:11]}  Qc3 {[%clk 0:00:05]} 51. Ree2 {[%clk 0:00:11]}  g5 {[%clk 0:00:04]} 52. Rc2 {[%clk 0:00:12]}  Qe1+ {[%clk 0:00:04]} 53. Kh2 {[%clk 0:00:12]}  Qh4+ {[%clk 0:00:03]} 54. Kg1 {[%clk 0:00:13]}  Qe1+ {[%clk 0:00:02]} 55. Kh2 {[%clk 0:00:13]}  h5 {[%clk 0:00:03]} 56. c5 {[%clk 0:00:13]}  Qh4+ {[%clk 0:00:02]} 57. Kg1 {[%clk 0:00:13]}  Qe1+ {[%clk 0:00:03]} 58. Kh2 {[%clk 0:00:13]}  Qh4+ {[%clk 0:00:04]} 59. Kg1 {[%clk 0:00:14]}  Qe1+ {[%clk 0:00:04]} 60. Kh2 {[%clk 0:00:14]} 1/2-1/2


[Site "https://www.chess.com"]